bitfinex/quotes_ETHUSD_20251116
["timestamp","ask_amount","ask_price","bid_price","bid_amount"]
[1763311374649,0.405504,3083.9,3081.7,0.4757]
[1763311374944,0.891704,3083.9,3081.7,0.4757]
[1763311375317,0.405504,3083.7,3081.7,0.4757]
[1763311375708,0.405504,3083.5,3081.7,0.4757]
[1763311376108,0.405504,3083.3,3081.7,0.4757]
[1763311376309,0.1586,3084.0,3081.7,1.6094408]
[1763311376588,0.4862,3083.9,3081.9,1.1337408]
[1763311376843,0.4862,3083.9,3082.0,0.4757]
[1763311377350,0.405504,3083.8,3082.0,0.4757]
[1763311377730,0.405504,3083.6,3081.6,0.1896]
[1763311378128,0.405504,3083.4,3081.6,0.1896]
[1763311378546,0.405504,3083.2,3081.7,0.4757]
[1763311379150,1.2923408,3084.0,3081.2,0.4757]
[1763311379151,0.405504,3083.0,3081.2,0.4757]
[1763311379349,0.405504,3083.0,3081.1,0.1896]
[1763311379350,0.405504,3082.8,3081.1,0.1896]
[1763311379562,0.405504,3082.8,3081.1,0.6653]
[1763311379711,0.4862,3083.6,3081.4,0.7106708]
[1763311379916,0.4862,3083.6,3081.5,0.4757]
[1763311380451,0.4862,3083.6,3081.1,0.1896]
[1763311380452,0.4862,3083.6,3081.9,0.001]
[1763311380649,0.405504,3083.5,3081.9,0.001]
[1763311381062,0.405504,3083.3,3081.9,0.001]
[1763311381264,0.405504,3083.1,3081.9,0.001]
[1763311381891,1.2943408,3084.0,3082.0,1.6094408]
[1763311381892,0.1606,3084.0,3082.0,1.6094408]
[1763311382087,0.1606,3084.0,3082.1,0.4757]
[1763311382776,0.4862,3083.9,3081.9,0.001]
[1763311382986,0.405504,3083.8,3081.9,0.001]
[1763311383491,0.405504,3083.6,3081.9,0.001]
[1763311383990,0.405504,3083.4,3081.9,0.001]
[1763311384471,0.405504,3083.2,3081.9,0.001]
[1763311384871,0.1606,3084.0,3082.0,0.4816]
[1763311385059,0.1606,3084.0,3082.0,1.6153408]
[1763311385394,0.1606,3084.0,3082.1,0.4816]
[1763311385781,0.002,3084.0,3082.6,1.1337408]
[1763311385955,0.002,3084.0,3082.7,0.6766]
[1763311386151,0.002,3084.0,3083.9,0.195]
[1763311386610,0.002,3084.0,3083.9,0.6766]
[1763311386751,0.002,3084.0,3083.9,3.91924729]
[1763311386952,0.002,3084.0,3083.9,0.6766]
[1763311387176,0.002,3084.0,3083.5,0.195]
[1763311387375,0.002,3084.0,3083.3,0.4816]
[1763311387552,0.002,3084.0,3082.8,0.4816]
[1763311387755,0.002,3084.0,3082.7,0.195]
[1763311388157,0.405504,3083.9,3082.3,0.4816]
[1763311388397,0.874004,3083.9,3082.3,0.4816]
[1763311388776,0.874004,3083.9,3081.6,3.44001854]
[1763311388777,0.405504,3083.7,3081.8,0.4816]
[1763311389209,0.002,3084.0,3082.0,0.4816]
[1763311389210,0.405504,3083.9,3082.0,0.4816]
[1763311389407,0.405504,3083.9,3081.9,0.4826]
[1763311389612,0.405504,3083.7,3081.9,3.7273069]
[1763311389917,0.4685,3083.8,3081.9,3.7273069]
[1763311389918,0.002,3084.0,3082.0,1.1337408]
[1763311390087,0.002,3084.0,3082.5,1.1337408]
[1763311390291,0.002,3084.0,3082.4,1.1337408]
[1763311390613,0.002,3084.0,3082.5,0.4816]
[1763311390972,0.002,3084.0,3082.5,6.96983879]
[1763311391214,0.002,3084.0,3082.5,0.4816]
[1763311391372,0.405504,3083.9,3082.5,0.4816]
[1763311391575,0.405504,3083.9,3081.9,0.4826]
[1763311391790,0.405504,3083.8,3081.9,4.86109241]
[1763311392029,0.405504,3083.8,3081.9,8.10584402]
[1763311392180,0.405504,3083.8,3082.0,0.4816]
[1763311392814,0.405504,3083.8,3082.2,1.1337408]
[1763311393217,0.405504,3083.8,3082.3,0.4816]
[1763311393877,0.874004,3083.8,3082.3,0.4816]
[1763311394084,0.405504,3083.8,3082.3,0.4816]
[1763311394796,0.405504,3083.8,3082.4,6.48845054]
[1763311395133,0.002,3084.0,3082.5,1.1337408]
[1763311395313,0.002,3084.0,3083.1,1.1337408]
[1763311395680,0.002,3084.0,3083.2,0.6562]
[1763311396020,0.002,3084.0,3082.9,0.4754]
[1763311396224,0.002,3084.0,3082.8,0.1308]
[1763311396382,0.002,3084.0,3082.9,0.4754]
[1763311397123,0.002,3084.0,3083.0,1.1337408]
[1763311397622,0.002,3084.0,3083.1,0.4754]
[1763311398024,0.05,3083.9,3082.8,0.1308]
[1763311398179,0.5153,3083.9,3082.1,0.4754]
[1763311398504,0.405504,3083.8,3082.1,0.4754]
[1763311398922,0.870804,3083.8,3082.1,0.4754]
[1763311399225,0.870804,3083.8,3081.9,10.46464921]
[1763311399226,0.405504,3083.2,3081.9,0.001]
[1763311399432,0.405504,3083.0,3081.9,0.001]
[1763311399590,0.405504,3082.8,3081.9,0.001]
[1763311399982,0.1566,3082.7,3081.9,0.001]
[1763311400734,0.29684935,3082.8,3082.0,1.1337408]
[1763311400899,0.67955489,3083.1,3082.2,1.1337408]
[1763311401088,0.29747481,3083.0,3081.9,1.6101408]
[1763311401293,0.405504,3083.1,3082.0,1.1337408]
[1763311401495,0.29747481,3083.0,3081.9,0.001]
[1763311402335,0.29747481,3083.0,3082.0,1.1337408]
[1763311402837,0.98294471,3083.0,3082.1,0.4754]
[1763311403134,0.29747481,3082.9,3082.2,1.1337408]
[1763311403437,0.29747481,3083.2,3082.2,1.1337408]
[1763311403738,1.51115153,3083.4,3082.3,0.4754]
[1763311403739,0.29747481,3083.3,3082.3,0.4754]
[1763311403946,0.29747481,3083.3,3082.4,0.03244225]
[1763311404154,0.29747481,3083.3,3082.5,0.4754]
[1763311404359,0.6854699,3083.7,3082.5,0.4754]
[1763311404561,0.29763409,3083.6,3082.5,0.4754]
[1763311404909,5.0,3083.8,3082.7,1.1337408]
[1763311405108,5.0,3083.8,3082.7,1.94345784]
[1763311405334,5.0,3083.8,3082.8,0.4754]
[1763311405520,5.0,3083.8,3083.7,0.1808]
[1763311406040,5.0,3083.8,3083.7,0.6562]
[1763311406730,6.45012592,3083.8,3081.9,0.4764]
[1763311406938,3.46939423,3083.7,3082.0,3.24464633]
[1763311407122,0.98482592,3083.6,3082.1,1.6091408]
[1763311407324,0.29793893,3083.5,3082.1,0.4754]
[1763311407520,0.98482592,3083.6,3082.2,0.4754]
[1763311407719,0.29793893,3083.5,3082.2,0.4754]
[1763311407963,0.405504,3083.4,3082.3,0.1808]
[1763311408138,0.29793893,3083.3,3082.3,0.1808]
[1763311408443,0.29793893,3083.3,3082.0,1.1337408]
[1763311408444,0.405504,3083.3,3082.0,1.1337408]
[1763311408649,0.29793893,3083.2,3082.0,1.1337408]
[1763311408847,0.70344293,3083.1,3081.7,0.6562]
[1763311409047,0.70344293,3083.1,3081.8,0.4754]
[1763311409048,0.48350192,3083.0,3081.8,0.4754]
[1763311409407,0.48350192,3083.0,3081.5,3.24616452]
[1763311409408,0.405504,3082.8,3081.5,3.24616452]
[1763311409624,0.405504,3082.6,3081.5,3.2461728]
[1763311409826,0.29793893,3082.5,3081.5,0.001]
[1763311410036,0.70344293,3082.4,3081.5,0.001]
[1763311410234,0.405504,3082.2,3081.5,0.001]
[1763311410482,0.29793893,3082.1,3081.5,0.001]
[1763311411272,0.68688699,3082.4,3081.6,0.4754]
[1763311411577,0.68688699,3082.5,3081.6,0.4754]
[1763311411857,0.405504,3082.9,3081.6,0.4754]
[1763311412052,0.29785944,3082.8,3081.6,0.4754]
[1763311412253,0.29785335,3082.8,3081.6,0.4754]
[1763311412553,5.85866083,3083.8,3082.7,0.1808]
[1763311412761,0.98420945,3083.7,3082.7,0.1808]
[1763311413054,5.69615697,3083.8,3082.9,1.1337408]
[1763311413055,0.2979193,3083.6,3082.9,1.1337408]
[1763311413220,5.0,3083.8,3082.7,0.1808]
[1763311413221,0.2979193,3083.7,3082.7,0.1808]
[1763311413410,0.98389879,3083.7,3082.8,1.1337408]
[1763311413613,5.0,3083.8,3082.8,1.1337408]
[1763311413614,5.0,3083.8,3082.8,1.6091408]
[1763311413813,5.0,3083.8,3082.8,0.4754]
[1763311414008,0.29782163,3083.7,3082.8,1.6091408]
[1763311414268,5.0,3083.8,3082.8,0.4754]
[1763311414467,0.29781328,3083.7,3082.8,0.4754]
[1763311414672,5.0,3083.8,3082.8,0.4754]
[1763311414880,5.0,3083.8,3082.8,0.97878504]
[1763311415075,5.0,3083.8,3083.0,1.1337408]
[1763311415279,5.0,3083.8,3083.1,0.4588]
[1763311416242,5.002,3083.8,3083.1,0.4588]
[1763311416569,5.002,3083.8,3083.1,0.49123488]
[1763311416766,5.002,3083.8,3083.3,0.405504]
[1763311417079,4.502,3083.8,3083.4,3.70196604]
[1763311417280,4.502,3083.8,3083.5,0.4588]
[1763311417775,0.002,3084.0,3083.5,0.4588]
[1763311418349,0.002,3084.0,3083.1,0.4588]
[1763311418960,0.002,3084.0,3083.4,1.1337408]
[1763311419155,0.002,3084.0,3083.5,1.08635757]
[1763311419350,0.002,3084.0,3083.5,1.54515757]
[1763311419705,0.1806,3083.9,3082.8,0.6340183]
[1763311419844,0.1806,3083.9,3082.4,3.43761502]
[1763311419845,0.70316312,3083.8,3082.4,3.43761502]
[1763311420051,0.29765912,3083.7,3082.4,3.43761502]
[1763311420346,0.29765912,3083.7,3082.5,1.5925408]
[1763311420545,0.29765912,3083.7,3082.5,1.1337408]
[1763311420546,0.405504,3083.6,3082.5,1.1337408]
[1763311420750,0.405504,3083.4,3082.4,0.64051821]
[1763311420986,0.29765912,3083.3,3082.5,0.0324412]
[1763311421169,0.29759589,3083.5,3082.3,0.001]
[1763311421373,0.29759589,3083.5,3082.3,4.37906249]
[1763311421556,0.29759589,3083.5,3082.4,1.1337408]
[1763311421768,0.29759589,3083.5,3082.3,0.001]
[1763311421975,0.4593,3083.4,3082.3,0.001]
[1763311422287,0.4593,3083.4,3082.3,3.24532276]
[1763311422485,0.4593,3083.4,3082.3,0.001]
[1763311422783,0.4593,3083.4,3082.4,1.1337408]
[1763311422984,0.4593,3083.4,3082.5,1.1337408]
[1763311423186,0.4593,3083.4,3082.3,1.08725257]
[1763311423187,0.4593,3083.4,3082.3,1.78306672]
[1763311423396,0.70285706,3083.3,3082.3,0.64932592]
[1763311423610,0.29735306,3083.2,3082.3,0.64932592]
[1763311423795,0.47795306,3083.2,3082.3,0.64932592]
[1763311424511,0.4593,3083.8,3082.4,0.4588]
[1763311424662,0.1806,3083.9,3082.5,0.43524565]
[1763311424863,0.1806,3083.9,3082.5,0.89404565]
[1763311425079,0.1806,3083.9,3082.6,1.1337408]
[1763311425401,0.6399,3083.9,3082.6,1.5925408]
[1763311425898,0.4593,3083.8,3082.6,1.5925408]
[1763311426066,0.4593,3083.8,3082.6,2.11972507]
[1763311426588,0.405504,3083.6,3082.3,0.64932592]
[1763311426790,0.405504,3083.4,3082.3,0.64932592]
[1763311426966,0.405504,3083.2,3082.3,0.64932592]
[1763311427167,0.6399,3083.1,3082.3,0.64932592]
[1763311427412,0.6399,3083.1,3082.3,0.001]
[1763311427690,0.864804,3083.0,3082.3,0.001]
[1763311428078,0.4593,3082.9,3082.3,0.001]
[1763311428474,0.405504,3082.8,3082.3,0.001]
[1763311428861,0.405504,3082.6,3082.3,0.001]
[1763311429090,0.75634063,3082.7,3081.6,0.001]
[1763311429091,0.405504,3081.9,3081.6,0.001]
[1763311429494,0.405504,3081.7,3081.6,0.001]
[1763311429696,0.70235679,3081.7,3081.2,0.001]
[1763311429871,0.1806,3082.0,3081.2,0.001]
[1763311429872,0.405504,3081.5,3081.2,0.001]
[1763311430073,0.29685279,3081.4,3081.2,0.001]
[1763311430311,0.75615279,3081.4,3081.2,0.001]
[1763311430515,0.75615279,3081.4,3078.8,0.4588]
[1763311430516,0.7020821,3081.3,3078.8,0.4588]
[1763311430824,0.1806,3080.8,3079.0,0.1916]
[1763311430971,0.405504,3080.7,3078.5,0.6599328]
[1763311431175,0.405504,3080.7,3077.8,0.1934]
[1763311431176,0.405504,3080.5,3077.8,0.1934]
[1763311431370,0.405504,3080.3,3077.9,1.47799522]
[1763311431571,0.405504,3080.1,3077.9,0.34425442]
[1763311431778,0.2965781,3080.2,3077.9,0.34425442]
[1763311431779,0.405504,3080.2,3078.0,0.4588]
[1763311431972,0.405504,3080.0,3078.0,0.4588]
[1763311432515,0.4593,3080.1,3077.2,3.24961065]
[1763311432516,0.405504,3079.8,3077.2,3.24961065]
[1763311432724,0.405504,3079.8,3077.3,0.34996107]
[1763311432725,0.405504,3079.6,3077.3,0.34996107]
[1763311433078,0.4593,3079.5,3077.4,6.49899264]
[1763311433286,0.405504,3079.4,3077.5,1.1337408]
[1763311433503,0.405504,3079.4,3077.5,1.5925408]
[1763311433699,0.4593,3079.6,3077.6,0.4588]
[1763311433898,0.405504,3079.7,3077.6,0.4588]
[1763311434322,0.405504,3079.8,3077.7,0.405504]
[1763311434519,0.1806,3079.9,3077.7,0.405504]
[1763311434520,0.405504,3079.6,3077.8,0.4588]
[1763311435311,0.405504,3079.6,3078.0,1.1337408]
[1763311435626,0.405504,3079.8,3078.1,1.41296146]
[1763311435933,0.405504,3079.8,3078.1,1.87176146]
[1763311436237,0.1806,3079.9,3078.1,1.87176146]
[1763311436238,0.405504,3079.6,3078.2,0.4588]
[1763311436722,0.4593,3079.5,3078.2,0.4588]
[1763311436957,0.405504,3079.4,3078.0,0.1916]
[1763311437129,0.405504,3079.8,3078.3,0.4588]
[1763311437316,0.864804,3079.8,3078.5,1.1337408]
[1763311437854,0.1806,3080.3,3078.6,0.49128229]
[1763311438051,0.4593,3080.0,3078.6,0.4588]
[1763311438216,0.1806,3080.3,3078.6,0.4588]
[1763311438554,0.4593,3080.2,3078.6,0.4588]
[1763311438836,0.405504,3080.1,3078.6,0.4588]
[1763311439362,0.405504,3080.1,3078.8,1.1337408]
[1763311439638,0.4593,3080.1,3078.7,1.1337408]
[1763311439845,0.405504,3080.2,3078.8,0.80889833]
[1763311440047,0.1806,3080.3,3078.9,0.03247913]
[1763311440354,0.4593,3080.5,3078.9,0.4588]
[1763311440502,0.4593,3080.5,3079.0,0.1934]
[1763311440730,0.405504,3080.4,3079.0,0.1934]
[1763311441370,0.6900321,3080.8,3079.0,0.1934]
[1763311441371,0.405504,3080.2,3079.0,0.1934]
[1763311441664,0.405504,3080.2,3079.0,4.57492493]
[1763311441665,0.864804,3080.2,3079.0,4.57492493]
[1763311441865,0.864804,3080.2,3079.0,3.44118929]
[1763311442164,0.4593,3080.2,3079.1,0.38999893]
[1763311442362,0.405504,3080.1,3079.1,1.52373973]
[1763311442741,0.405504,3080.1,3079.1,0.38999893]
[1763311442742,0.4593,3080.1,3079.1,0.38999893]
[1763311442940,0.4593,3080.1,3079.0,0.1934]
[1763311443357,0.405504,3080.5,3079.1,0.4588]
[1763311443538,0.405504,3080.5,3079.1,1.5925408]
[1763311443739,0.1806,3080.8,3079.2,0.03247596]
[1763311444066,0.1806,3080.8,3079.3,0.4588]
[1763311444410,0.1806,3081.7,3080.7,0.1934]
[1763311444554,1.463,3082.8,3080.7,0.1934]
[1763311444555,0.4593,3082.2,3080.7,0.1934]
[1763311444868,0.4593,3082.2,3080.4,0.1923]
[1763311445068,0.4593,3082.2,3079.0,13.84082997]
[1763311445069,0.405504,3080.7,3079.1,1.1337408]
[1763311445271,0.1822,3080.8,3079.2,1.31899553]
[1763311445430,0.1822,3080.8,3079.0,4.09740681]
[1763311445431,0.869104,3080.7,3079.0,0.84968011]
[1763311445640,0.869104,3080.7,3079.1,0.4711]
[1763311445825,0.869104,3080.7,3079.0,0.84968011]
[1763311445826,0.405504,3080.5,3079.0,0.84968011]
[1763311446365,0.405504,3080.3,3079.0,1.3271408]
[1763311446565,0.405504,3080.3,3079.1,1.1337408]
[1763311446867,0.405504,3080.7,3079.0,1.1691149]
[1763311447187,0.405504,3080.1,3079.0,0.6645]
[1763311447332,0.1822,3080.8,3079.1,1.6048408]
[1763311447667,0.405504,3080.6,3079.1,1.6048408]
[1763311447870,0.1822,3080.8,3079.2,0.4711]
[1763311448079,0.405504,3080.6,3079.2,0.4711]
[1763311448431,0.405504,3080.6,3079.0,9.93680907]
[1763311448432,0.405504,3080.4,3078.8,0.66296537]
[1763311448632,0.405504,3080.4,3078.3,0.4711]
[1763311448931,0.405504,3080.4,3078.0,0.1916]
[1763311448932,0.405504,3080.2,3078.0,0.1916]
[1763311449368,0.405504,3080.0,3078.0,0.1916]
[1763311449769,0.405504,3079.8,3078.0,0.1916]
[1763311450067,0.405504,3079.8,3078.0,1.3253408]
[1763311450267,0.405504,3079.6,3078.0,1.3253408]
[1763311450474,0.405504,3079.6,3078.1,1.1337408]
[1763311450630,0.405504,3079.4,3077.9,0.65952012]
[1763311450835,0.405504,3079.4,3077.5,0.4711]
[1763311451043,0.405504,3079.2,3077.3,0.1923]
[1763311451230,0.405504,3079.2,3077.4,0.34529307]
[1763311451445,0.405504,3079.0,3077.4,0.001]
[1763311451970,0.05,3079.3,3077.4,0.001]
[1763311451971,0.405504,3078.8,3077.4,0.001]
[1763311452469,1.1837408,3079.3,3077.4,0.001]
[1763311452470,0.405504,3078.6,3077.4,0.001]
[1763311452975,0.405504,3078.4,3077.4,0.001]
[1763311453269,0.405504,3078.2,3077.4,0.001]
[1763311453775,0.1536,3078.7,3077.4,0.001]
[1763311453776,0.405504,3078.6,3077.4,0.001]
[1763311453940,0.405504,3078.2,3077.4,0.001]
[1763311454268,0.1536,3078.7,3077.4,0.001]
[1763311454269,0.6172,3078.7,3077.4,0.001]
[1763311454576,0.405504,3078.6,3077.4,0.001]
[1763311454939,0.869104,3078.6,3077.4,0.001]
[1763311455554,0.869104,3078.6,3077.5,1.1337408]
[1763311456173,0.67840293,3079.7,3077.6,0.4867]
[1763311456358,0.1918,3079.2,3077.6,0.4867]
[1763311456557,0.405504,3079.1,3077.4,0.001]
[1763311456774,0.405504,3078.9,3077.4,0.001]
[1763311456941,0.405504,3078.7,3077.4,0.001]
[1763311457141,0.405504,3078.5,3077.4,0.001]
[1763311457363,0.79336778,3078.4,3077.4,0.001]
[1763311457556,0.405504,3078.2,3077.4,0.001]
[1763311457766,0.405504,3078.0,3077.4,0.001]
[1763311458157,0.405504,3077.8,3077.4,0.001]
[1763311458354,0.405504,3078.1,3077.4,0.001]
[1763311458555,0.29609452,3078.0,3077.4,0.001]
[1763311459478,0.903604,3077.9,3077.4,0.001]
[1763311459685,0.29609452,3077.8,3077.4,0.001]
[1763311459857,0.79419452,3077.8,3077.4,0.001]
[1763311460060,0.29609452,3077.7,3077.4,0.001]
[1763311460760,0.903604,3077.6,3077.4,0.001]
[1763311460943,0.29611053,3077.5,3077.4,0.001]
[1763311461148,0.79421053,3077.5,3077.4,0.001]
[1763311461601,1.19971453,3077.5,3077.4,0.001]
[1763311461750,1.19971453,3077.5,3077.1,0.25]
[1763311461945,1.19971453,3077.4,3077.1,0.25]
[1763311462297,0.405504,3077.2,3077.1,0.25]
[1763311462496,0.70161453,3077.2,3077.1,0.25]
[1763311462697,1.40555207,3077.2,3077.1,0.25]
[1763311462899,2.08739983,3077.2,3077.1,0.25]
[1763311464089,1.19971453,3077.2,3077.1,0.25]
[1763311466015,0.405504,3077.0,3076.7,0.001]
[1763311466310,0.4981,3077.1,3076.7,0.001]
[1763311466311,0.597304,3076.8,3076.7,0.001]
[1763311466504,0.89341453,3076.8,3076.7,0.001]
[1763311466670,1.39151453,3076.8,3076.7,0.001]
[1763311466871,2.36359483,3076.8,3076.7,0.001]
[1763311468485,0.48791053,3076.8,3076.7,0.001]
[1763311468820,0.6899,3076.8,3076.7,0.001]
[1763311468972,0.48791053,3076.8,3076.7,0.001]
[1763311469175,0.86909198,3077.6,3076.7,0.4877]
[1763311469398,0.29370121,3077.5,3076.7,0.4877]
[1763311469583,0.1918,3077.9,3076.7,0.4877]
[1763311469920,0.48561671,3077.9,3076.8,1.1337408]
[1763311470074,0.48561671,3077.9,3076.7,3.73793564]
[1763311470075,0.48561671,3077.9,3076.7,0.4877]
[1763311470414,0.98571671,3077.9,3076.7,0.001]
[1763311470577,0.405504,3077.7,3076.7,0.001]
[1763311470772,0.405504,3077.5,3076.7,0.001]
[1763311471005,0.405504,3077.3,3076.7,0.001]
[1763311471206,0.67692067,3077.8,3076.7,0.001]
[1763311471207,0.4981,3077.8,3076.7,0.001]
[1763311471429,0.1938,3077.9,3076.7,0.001]
[1763311471430,0.79189102,3077.7,3076.7,0.001]
[1763311471627,0.1938,3077.9,3076.7,0.001]
[1763311471908,0.4875743,3077.9,3076.7,0.4877]
[1763311472596,0.405504,3077.8,3076.7,0.4877]
[1763311472815,0.405504,3077.8,3077.1,1.1337408]
[1763311473617,0.405504,3077.8,3077.1,1.3224408]
[1763311474285,0.405504,3077.6,3077.1,1.3224408]
[1763311474512,0.407504,3077.9,3077.1,1.7853408]
[1763311474714,0.29434693,3077.8,3077.1,1.1337408]
[1763311474898,0.405504,3077.7,3076.7,0.001]
[1763311475218,0.405504,3077.5,3076.7,0.001]
[1763311475419,0.405504,3077.3,3076.7,0.001]
[1763311475621,0.405504,3077.1,3076.7,0.001]
[1763311475819,0.405504,3076.9,3076.7,0.001]
[1763311476043,0.29434693,3076.8,3076.7,0.001]
[1763311476842,0.75854693,3076.8,3076.7,0.001]
[1763311478323,0.29434693,3076.8,3076.7,0.001]
[1763311478506,0.405504,3076.8,3076.7,0.001]
[1763311478712,0.29434693,3076.8,3076.7,9.64387643]
[1763311478942,0.29434693,3077.3,3076.8,1.1337408]
[1763311479249,0.29586711,3077.8,3077.2,9.17997643]
[1763311479418,0.29586711,3077.7,3077.2,9.37007643]
[1763311479626,0.29586711,3077.6,3077.2,9.37007643]
[1763311479809,0.29586711,3077.5,3077.3,1.1337408]
[1763311480003,0.002,3077.9,3077.3,1.5966408]
[1763311480004,0.29586711,3077.8,3077.3,1.5966408]
[1763311480253,0.29586711,3077.7,3077.3,1.1337408]
[1763311480458,0.29586711,3077.6,3077.3,1.1337408]
[1763311480654,0.002,3077.9,3077.3,1.1337408]
[1763311480655,0.29586711,3077.8,3077.3,1.1337408]
[1763311480834,0.29586711,3077.7,3077.3,1.1337408]
[1763311481007,0.29586711,3077.6,3077.3,1.1337408]
[1763311481210,0.29586711,3077.8,3077.3,1.1337408]
[1763311481440,0.29586711,3077.7,3077.3,1.1337408]
[1763311481647,0.29586711,3077.6,3077.3,1.1337408]
[1763311481835,0.29586711,3077.5,3077.3,1.1337408]
[1763311482033,0.29586711,3077.8,3077.3,1.1337408]
[1763311482362,0.29586711,3077.7,3077.3,1.1337408]
[1763311482535,0.29586711,3077.6,3077.3,1.1337408]
[1763311482738,0.29586711,3077.5,3077.3,1.1337408]
[1763311482958,0.29586711,3077.8,3077.3,1.1337408]
[1763311483112,0.29586711,3077.7,3077.3,1.1337408]
[1763311483438,0.002,3077.9,3077.4,0.4629]
[1763311483641,0.002,3077.9,3077.3,2.06582977]
[1763311483805,0.002,3077.9,3077.4,0.4629]
[1763311484006,0.29586711,3077.8,3077.3,1.1337408]
[1763311484207,0.29586711,3077.7,3077.3,1.1337408]
[1763311484447,0.1841,3077.9,3077.3,1.1337408]
[1763311484448,0.29586711,3077.6,3077.3,1.1337408]
[1763311484744,0.405504,3077.7,3077.3,1.1337408]
[1763311484915,0.29586711,3077.6,3077.0,0.1901]
[1763311485320,0.29586711,3077.6,3077.0,0.653]
[1763311485648,0.29586711,3077.6,3077.0,0.1901]
[1763311486011,0.70137111,3077.5,3076.7,1.1347408]
[1763311486313,0.405504,3077.3,3076.7,1.1347408]
[1763311486549,0.405504,3077.6,3076.7,1.1347408]
[1763311486850,0.29803697,3077.5,3076.7,0.001]
[1763311487055,0.405504,3077.3,3076.7,0.001]
[1763311487352,0.405504,3077.1,3076.7,0.001]
[1763311487555,0.405504,3076.9,3076.7,0.001]
[1763311487856,0.70354097,3076.8,3076.7,0.001]
[1763311488363,0.405504,3077.6,3076.7,0.001]
[1763311488509,0.29770861,3077.5,3076.7,0.001]
[1763311488712,0.405504,3077.3,3076.7,0.001]
[1763311488948,0.29770861,3077.2,3077.0,0.001]
[1763311489123,1.04163739,3077.9,3077.0,0.001]
[1763311489124,0.29770861,3077.5,3077.0,0.001]
[1763311489420,0.29770861,3077.8,3077.0,0.001]
[1763311489651,0.405504,3077.3,3077.0,0.001]
[1763311489848,0.405504,3077.1,3077.0,0.001]
[1763311490088,0.29770861,3077.1,3077.0,0.001]
[1763311490394,0.405504,3077.5,3077.0,0.001]
[1763311490684,0.29770861,3077.4,3077.0,0.001]
[1763311491582,0.405504,3077.3,3077.0,0.001]
[1763311491752,0.29770861,3077.2,3077.0,0.001]
[1763311492449,0.29770861,3077.4,3077.0,0.001]
[1763311492787,0.29770861,3077.6,3077.1,0.1901]
[1763311492991,0.002,3077.9,3077.1,0.1901]
[1763311492992,0.29770861,3077.7,3077.1,0.1901]
[1763311493141,0.29770861,3077.8,3077.1,0.1901]
[1763311493335,0.405504,3077.7,3077.1,0.1901]
[1763311493584,0.405504,3077.7,3077.0,0.001]
[1763311493585,0.29770861,3077.6,3077.0,0.001]
[1763311493767,0.405504,3077.5,3077.0,0.001]
[1763311493937,0.29770861,3077.4,3077.0,0.001]
[1763311494286,0.405504,3077.3,3077.0,0.001]
[1763311494447,0.29770861,3077.2,3077.0,0.001]
[1763311494787,0.405504,3077.1,3077.0,0.001]
[1763311494987,0.70321261,3077.1,3077.0,0.001]
[1763311495853,1.16741261,3077.1,3077.0,0.001]
[1763311496896,1.3527382,3077.1,3077.0,0.001]
[1763311497187,2.03890666,3077.1,3077.0,0.001]
[1763311498295,2.40760666,3077.1,3077.0,0.001]
[1763311498977,2.40760666,3077.1,3076.7,0.001]
[1763311498978,4.05896993,3077.1,3076.7,0.001]
[1763311499176,0.774204,3076.7,3076.3,0.001]
[1763311499493,0.774204,3076.4,3076.3,0.001]
[1763311499677,1.07191261,3076.4,3076.3,0.001]
[1763311499865,1.53521261,3076.4,3076.3,0.001]
[1763311500067,1.16651261,3076.4,3076.3,0.001]
[1763311500270,2.02338268,3076.4,3076.3,0.001]
[1763311500594,0.405504,3076.3,3075.5,0.001]
[1763311500924,0.548804,3075.6,3075.5,0.001]
[1763311501216,0.84624107,3075.6,3075.5,0.001]
[1763311501408,1.31044107,3075.6,3075.5,0.001]
[1763311501580,2.19627048,3075.6,3075.5,0.001]
[1763311502386,0.70294107,3075.6,3075.5,0.001]
[1763311502585,0.29743707,3075.6,3075.5,0.001]
[1763311502788,0.29743707,3076.0,3075.5,0.001]
[1763311503316,0.76163707,3076.0,3075.5,0.001]
[1763311503499,0.29743707,3075.9,3075.5,0.001]
[1763311503818,0.405504,3075.8,3075.5,0.001]
[1763311503970,0.405504,3075.6,3075.5,0.001]
[1763311504171,0.70294107,3075.6,3075.5,0.001]
[1763311504401,1.16714107,3075.6,3075.5,0.001]
[1763311504815,1.21714107,3075.6,3075.2,0.001]
[1763311505107,0.405504,3075.4,3075.2,0.001]
[1763311505269,1.1921674,3076.0,3075.2,0.001]
[1763311505270,0.85662555,3076.4,3075.2,0.001]
[1763311505469,0.29629721,3076.3,3075.5,1.1337408]
[1763311505674,0.29629721,3076.4,3075.2,0.001]
[1763311505911,0.29629721,3076.4,3075.5,1.1337408]
[1763311506078,0.185,3076.5,3075.5,1.1337408]
[1763311506079,0.29629721,3076.5,3075.5,1.1347408]
[1763311506271,0.48801997,3076.6,3075.5,1.1347408]
[1763311506474,0.29629721,3076.6,3075.5,1.1347408]
[1763311506722,0.405504,3076.6,3075.5,1.1347408]
[1763311507008,0.29629721,3076.5,3075.5,1.1347408]
[1763311507193,0.51015621,3076.4,3075.5,1.6014408]
[1763311507397,0.29629721,3076.3,3075.5,1.6014408]
[1763311507583,0.405504,3076.2,3075.5,1.6014408]
[1763311507909,0.405504,3076.0,3075.5,1.1347408]
[1763311508297,0.405504,3076.3,3075.6,0.4667]
[1763311508528,0.29603073,3076.2,3075.6,0.4667]
[1763311509105,0.51015621,3076.4,3076.1,0.1937]
[1763311509340,0.51015621,3076.4,3075.5,1.16725583]
[1763311509341,0.4627,3076.8,3075.5,0.001]